[Event "*** Qualifier 4: Titled Tuesday 3|2 Blitz"]
[Site "Chess.com"]
[Date "2017.04.25"]
[Round "8"]
[White "indfraeng"]
[Black "politeplayer"]
[Result "0-1"]
[WhiteElo "1800"]
[BlackElo "2186"]
[TimeControl "180+2"]
[EndTime "14:42:28 PDT"]
[Termination "politeplayer won by resignation"]

1. d4 {[%clk 0:02:51]} 1... d5 {[%clk 0:03:00.2]} 2. c4 {[%clk 0:02:51.2]} 2...
e6 {[%clk 0:03:01.6]} 3. Nc3 {[%clk 0:02:49.1]} 3... c5 {[%clk 0:03:02.8]} 4.
cxd5 {[%clk 0:02:41.5]} 4... cxd4 {[%clk 0:03:03.2]} 5. Qxd4 {[%clk 0:02:41.3]}
5... Nc6 {[%clk 0:02:58.8]} 6. Qd1 {[%clk 0:02:33]} 6... exd5 {[%clk 0:02:58.7]}
7. Qxd5 {[%clk 0:02:31.7]} 7... Bd7 {[%clk 0:02:54.6]} 8. Bg5 {[%clk 0:02:21.1]}
8... Nf6 {[%clk 0:02:54.8]} 9. Bxf6 {[%clk 0:02:20.4]} 9... Qxf6 {[%clk
0:02:54.5]} 10. O-O-O {[%clk 0:02:16.7]} 10... O-O-O {[%clk 0:02:51.7]} 11. Qf3
{[%clk 0:01:45.9]} 11... Qg6 {[%clk 0:02:37]} 12. e3 {[%clk 0:01:35.9]} 12...
Bb4 {[%clk 0:02:19.6]} 13. Bd3 {[%clk 0:01:33.3]} 13... Qg5 {[%clk 0:01:57.7]}
14. Qf4 {[%clk 0:01:20.2]} 14... Qa5 {[%clk 0:01:39.7]} 15. Qc4 {[%clk
0:00:57.3]} 15... Kb8 {[%clk 0:01:33.9]} 16. a3 {[%clk 0:00:55.8]} 16... Bxa3
{[%clk 0:01:23.8]} 17. bxa3 {[%clk 0:00:55.8]} 17... Qxa3+ {[%clk 0:01:24]} 18.
Kc2 {[%clk 0:00:53.2]} 18... Na5 {[%clk 0:01:02.6]} 19. Qa4 {[%clk 0:00:49.2]}
19... Bxa4+ {[%clk 0:01:00.7]} 20. Nxa4 {[%clk 0:00:42.3]} 20... Qxa4+ {[%clk
0:00:58.3]} 21. Kc3 {[%clk 0:00:41.2]} 21... Qb3+ {[%clk 0:00:57.5]} 0-1

[Event "*** Qualifier 4: Titled Tuesday 3|2 Blitz"]
[Site "Chess.com"]
[Date "2017.04.25"]
[Round "8"]
[White "Ilja_Semjonovs"]
[Black "Aygehovit1992"]
[Result "0-1"]
[WhiteElo "2255"]
[BlackElo "2495"]
[TimeControl "180+2"]
[EndTime "14:43:00 PDT"]
[Termination "Aygehovit1992 won on time"]

1. e4 {[%clk 0:02:57]} 1... g6 {[%clk 0:03:00.9]} 2. Nf3 {[%clk 0:02:58]} 2...
Bg7 {[%clk 0:03:01.9]} 3. d4 {[%clk 0:02:58.3]} 3... d6 {[%clk 0:03:03.4]} 4.
Nc3 {[%clk 0:02:58.6]} 4... Nf6 {[%clk 0:03:03.7]} 5. Be2 {[%clk 0:02:58.6]}
5... O-O {[%clk 0:03:04.6]} 6. h3 {[%clk 0:02:52.7]} 6... Nc6 {[%clk 0:03:04.5]}
7. Be3 {[%clk 0:02:51.4]} 7... e5 {[%clk 0:02:42.2]} 8. Qd2 {[%clk 0:02:45.1]}
8... exd4 {[%clk 0:02:42.8]} 9. Nxd4 {[%clk 0:02:45.3]} 9... Re8 {[%clk
0:02:44.4]} 10. f3 {[%clk 0:02:44.2]} 10... a6 {[%clk 0:02:40.4]} 11. O-O-O
{[%clk 0:02:44.2]} 11... Ne5 {[%clk 0:02:30.5]} 12. g4 {[%clk 0:02:35.5]} 12...
b5 {[%clk 0:02:23.3]} 13. h4 {[%clk 0:02:12.1]} 13... c5 {[%clk 0:02:22.7]} 14.
Nb3 {[%clk 0:02:06.6]} 14... c4 {[%clk 0:02:23]} 15. Nd4 {[%clk 0:01:57.6]}
15... b4 {[%clk 0:02:23]} 16. Nb1 {[%clk 0:01:58]} 16... Qa5 {[%clk 0:02:15.8]}
17. a3 {[%clk 0:01:48.6]} 17... c3 {[%clk 0:02:15.2]} 18. bxc3 {[%clk
0:01:45.9]} 18... bxa3 {[%clk 0:02:14.8]} 19. c4 {[%clk 0:01:19.3]} 19... Qa4
{[%clk 0:01:58.6]} 20. Nc3 {[%clk 0:01:11.1]} 20... Qb4 {[%clk 0:01:58.2]} 21.
Nb3 {[%clk 0:01:10]} 21... Nfxg4 {[%clk 0:01:36]} 22. fxg4 {[%clk 0:00:46.5]}
22... Nxc4 {[%clk 0:01:35.7]} 23. Bxc4 {[%clk 0:00:46.7]} 23... Bxc3 {[%clk
0:01:36.5]} 24. Qd3 {[%clk 0:00:11]} 24... a2 {[%clk 0:01:36.1]} 25. Rdf1 {[%clk
0:00:07.1]} 25... Qa3+ {[%clk 0:01:26.8]} 26. Kd1 {[%clk 0:00:06.9]} 26... Bxg4+
{[%clk 0:01:28.2]} 0-1

[Event "*** Qualifier 4: Titled Tuesday 3|2 Blitz"]
[Site "Chess.com"]
[Date "2017.04.25"]
[Round "8"]
[White "Marcus_Harvey"]
[Black "swayamsm"]
[Result "0-1"]
[WhiteElo "2499"]
[BlackElo "2434"]
[TimeControl "180+2"]
[EndTime "14:43:56 PDT"]
[Termination "swayamsm won by resignation"]

1. e4 {[%clk 0:03:02]} 1... e5 {[%clk 0:02:58.2]} 2. Nf3 {[%clk 0:03:01.9]} 2...
Nc6 {[%clk 0:02:48]} 3. d4 {[%clk 0:03:00.4]} 3... exd4 {[%clk 0:02:48.6]} 4.
Bc4 {[%clk 0:03:01.7]} 4... Nf6 {[%clk 0:02:49.7]} 5. O-O {[%clk 0:03:03]} 5...
Nxe4 {[%clk 0:02:51]} 6. Re1 {[%clk 0:03:04.5]} 6... d5 {[%clk 0:02:52.6]} 7.
Bxd5 {[%clk 0:03:06.2]} 7... Qxd5 {[%clk 0:02:54.2]} 8. Nc3 {[%clk 0:03:07.8]}
8... Qa5 {[%clk 0:02:55.9]} 9. Nxe4 {[%clk 0:03:09]} 9... Be6 {[%clk 0:02:57.6]}
10. Neg5 {[%clk 0:03:10.7]} 10... O-O-O {[%clk 0:02:58.8]} 11. Nxe6 {[%clk
0:03:12.4]} 11... fxe6 {[%clk 0:03:00.3]} 12. Rxe6 {[%clk 0:03:13]} 12... Qd5
{[%clk 0:02:54]} 13. Qe2 {[%clk 0:03:09.1]} 13... h6 {[%clk 0:02:55.5]} 14. a3
{[%clk 0:02:56.3]} 14... Bc5 {[%clk 0:02:50.2]} 15. Bd2 {[%clk 0:02:49.3]} 15...
Rhf8 {[%clk 0:02:51]} 16. Re1 {[%clk 0:02:39]} 16... d3 {[%clk 0:02:51.9]} 17.
cxd3 {[%clk 0:02:37.5]} 17... Rxf3 {[%clk 0:02:49.8]} 18. Qxf3 {[%clk
0:02:30.5]} 18... Qxf3 {[%clk 0:02:49]} 19. gxf3 {[%clk 0:02:31.7]} 19... Nd4
{[%clk 0:02:50.7]} 20. Rg6 {[%clk 0:01:40.9]} 20... Nxf3+ {[%clk 0:02:49.9]} 21.
Kg2 {[%clk 0:01:42.4]} 21... Nxd2 {[%clk 0:02:31.5]} 22. Rxg7 {[%clk 0:01:26.7]}
22... Bd4 {[%clk 0:02:29.4]} 23. Rg6 {[%clk 0:01:13.6]} 23... Bxb2 {[%clk
0:02:28.7]} 24. Rd1 {[%clk 0:01:07.5]} 24... Nc4 {[%clk 0:02:15.1]} 25. Rxh6
{[%clk 0:00:54.4]} 25... Bxa3 {[%clk 0:02:08.6]} 26. h4 {[%clk 0:00:44.9]} 26...
Ne5 {[%clk 0:02:05.9]} 27. d4 {[%clk 0:00:38.1]} 27... Rg8+ {[%clk 0:02:01.9]}
28. Kf1 {[%clk 0:00:37.9]} 28... Ng4 {[%clk 0:02:02.8]} 29. Rh7 {[%clk
0:00:35.6]} 29... Rf8 {[%clk 0:02:02.9]} 30. Rd2 {[%clk 0:00:28.7]} 30... Bb4
{[%clk 0:01:58.8]} 31. Re2 {[%clk 0:00:24.8]} 31... Bc3 {[%clk 0:01:57]} 32. d5
{[%clk 0:00:17.5]} 32... Bd4 {[%clk 0:01:54.1]} 33. Kg2 {[%clk 0:00:14.7]} 33...
Bxf2 {[%clk 0:01:48.2]} 34. Rg7 {[%clk 0:00:14.1]} 34... Ne3+ {[%clk 0:01:48]}
35. Kh3 {[%clk 0:00:13.3]} 35... Rf3+ {[%clk 0:01:43.9]} 36. Kh2 {[%clk
0:00:12.5]} 36... Bxh4 {[%clk 0:01:45.5]} 37. d6 {[%clk 0:00:10.6]} 37... Bg3+
{[%clk 0:01:39.9]} 38. Rxg3 {[%clk 0:00:09.9]} 38... Nf1+ {[%clk 0:01:41]} 39.
Kg2 {[%clk 0:00:11.3]} 39... Rxg3+ {[%clk 0:01:42.4]} 40. Kxf1 {[%clk
0:00:12.9]} 40... cxd6 {[%clk 0:01:43]} 41. Re7 {[%clk 0:00:14.6]} 41... Rc3
{[%clk 0:01:42.2]} 42. Ke2 {[%clk 0:00:16]} 42... Rc7 {[%clk 0:01:43.8]} 43.
Re8+ {[%clk 0:00:14.7]} 43... Kd7 {[%clk 0:01:44.4]} 44. Ra8 {[%clk 0:00:16.4]}
44... b5 {[%clk 0:01:45.2]} 45. Kd3 {[%clk 0:00:17.7]} 45... Kc6 {[%clk
0:01:46.8]} 46. Kc3 {[%clk 0:00:18.1]} 46... Kb7+ {[%clk 0:01:47.4]} 0-1

[Event "*** Qualifier 4: Titled Tuesday 3|2 Blitz"]
[Site "Chess.com"]
[Date "2017.04.25"]
[Round "8"]
[White "1stSecond"]
[Black "dolynachess"]
[Result "0-1"]
[WhiteElo "2493"]
[BlackElo "2382"]
[TimeControl "180+2"]
[EndTime "14:43:57 PDT"]
[Termination "dolynachess won by resignation"]

1. Nf3 {[%clk 0:03:02]} 1... Nf6 {[%clk 0:02:59.8]} 2. g3 {[%clk 0:03:03.2]}
2... c5 {[%clk 0:03:01.7]} 3. Bg2 {[%clk 0:03:04.8]} 3... g6 {[%clk 0:03:02.8]}
4. O-O {[%clk 0:03:06.5]} 4... Nc6 {[%clk 0:03:04.1]} 5. d4 {[%clk 0:03:03.1]}
5... cxd4 {[%clk 0:03:04.5]} 6. Nxd4 {[%clk 0:03:05]} 6... Nxd4 {[%clk 0:03:06]}
7. Qxd4 {[%clk 0:03:05.5]} 7... d6 {[%clk 0:03:06.6]} 8. Nc3 {[%clk 0:03:03.6]}
8... Bg7 {[%clk 0:03:08.1]} 9. Qh4 {[%clk 0:03:04.3]} 9... O-O {[%clk 0:03:09]}
10. Bh6 {[%clk 0:03:04.2]} 10... Qa5 {[%clk 0:03:03]} 11. Bxg7 {[%clk 0:02:59]}
11... Kxg7 {[%clk 0:03:03.2]} 12. Rad1 {[%clk 0:02:59.8]} 12... Be6 {[%clk
0:02:59.7]} 13. Qd4 {[%clk 0:02:55.9]} 13... Rac8 {[%clk 0:02:39.4]} 14. e4
{[%clk 0:01:58.1]} 14... Rc4 {[%clk 0:02:24.7]} 15. Qd2 {[%clk 0:01:52.7]} 15...
Rfc8 {[%clk 0:02:25.3]} 16. h3 {[%clk 0:01:50.3]} 16... b5 {[%clk 0:02:23.9]}
17. a3 {[%clk 0:01:44.2]} 17... Qb6 {[%clk 0:02:00.3]} 18. Kh2 {[%clk
0:01:42.7]} 18... a5 {[%clk 0:01:58.4]} 19. Qe1 {[%clk 0:01:13.4]} 19... b4
{[%clk 0:01:58.4]} 20. axb4 {[%clk 0:01:15.3]} 20... axb4 {[%clk 0:01:59.1]} 21.
Nd5 {[%clk 0:01:16.5]} 21... Bxd5 {[%clk 0:01:55.8]} 22. exd5 {[%clk 0:01:17.4]}
22... Rxc2 {[%clk 0:01:56.7]} 23. Qxe7 {[%clk 0:01:17.8]} 23... Rxf2 {[%clk
0:01:54.3]} 24. Rxf2 {[%clk 0:01:17.9]} 24... Qxf2 {[%clk 0:01:53.7]} 25. Rf1
{[%clk 0:01:13.3]} 25... Qd4 {[%clk 0:01:53.4]} 26. Qxd6 {[%clk 0:01:12.1]}
26... Rc2 {[%clk 0:01:52.4]} 27. Kh1 {[%clk 0:00:29.7]} 27... Qxb2 {[%clk
0:01:21.6]} 28. Rg1 {[%clk 0:00:31]} 28... Qd4 {[%clk 0:01:09.9]} 29. Rf1 {[%clk
0:00:27.4]} 29... b3 {[%clk 0:01:09.7]} 30. Rf4 {[%clk 0:00:22.9]} 30... Qb2
{[%clk 0:01:03.3]} 31. Bf1 {[%clk 0:00:21.3]} 31... Rf2 {[%clk 0:00:52.7]} 32.
Kg1 {[%clk 0:00:21.7]} 32... Rxf4 {[%clk 0:00:49.7]} 33. gxf4 {[%clk 0:00:22.8]}
33... Qd4+ {[%clk 0:00:49.3]} 34. Kg2 {[%clk 0:00:23.9]} 34... Nxd5 {[%clk
0:00:46.9]} 35. Qxd5 {[%clk 0:00:25.8]} 35... Qxd5+ {[%clk 0:00:47.6]} 0-1

[Event "*** Qualifier 4: Titled Tuesday 3|2 Blitz"]
[Site "Chess.com"]
[Date "2017.04.25"]
[Round "8"]
[White "MyleneFarmer"]
[Black "Iball95"]
[Result "0-1"]
[WhiteElo "2342"]
[BlackElo "2534"]
[TimeControl "180+2"]
[EndTime "14:44:26 PDT"]
[Termination "Iball95 won by resignation"]

1. d4 {[%clk 0:03:02]} 1... Nf6 {[%clk 0:02:59.3]} 2. c4 {[%clk 0:03:02.7]} 2...
e6 {[%clk 0:02:55.8]} 3. Nf3 {[%clk 0:03:03.5]} 3... d5 {[%clk 0:02:55.3]} 4. g3
{[%clk 0:03:02.8]} 4... Bb4+ {[%clk 0:02:56.2]} 5. Bd2 {[%clk 0:03:03.7]} 5...
Be7 {[%clk 0:02:57.7]} 6. Bg2 {[%clk 0:03:03.6]} 6... O-O {[%clk 0:02:59.3]} 7.
O-O {[%clk 0:03:05.2]} 7... Nbd7 {[%clk 0:03:00.4]} 8. Qc2 {[%clk 0:03:05.8]}
8... Ne4 {[%clk 0:03:01.2]} 9. Nc3 {[%clk 0:03:02.7]} 9... Nxd2 {[%clk
0:03:01.9]} 10. Nxd2 {[%clk 0:03:00.9]} 10... c6 {[%clk 0:03:02.3]} 11. e4
{[%clk 0:02:54.4]} 11... dxe4 {[%clk 0:03:03.2]} 12. Ndxe4 {[%clk 0:02:56.3]}
12... Qc7 {[%clk 0:03:04.8]} 13. Rfe1 {[%clk 0:02:54]} 13... e5 {[%clk
0:02:48.8]} 14. d5 {[%clk 0:02:47.9]} 14... f5 {[%clk 0:02:49.3]} 15. d6 {[%clk
0:02:24.2]} 15... Bxd6 {[%clk 0:02:49.8]} 16. Nxd6 {[%clk 0:02:25.5]} 16... Qxd6
{[%clk 0:02:51.7]} 17. Rad1 {[%clk 0:02:25.6]} 17... Qc7 {[%clk 0:02:44.4]} 18.
Qd2 {[%clk 0:01:41.7]} 18... Nf6 {[%clk 0:02:41.7]} 19. Qd6 {[%clk 0:01:36.2]}
19... Qxd6 {[%clk 0:02:31.5]} 20. Rxd6 {[%clk 0:01:38.1]} 20... Re8 {[%clk
0:02:27.6]} 21. Na4 {[%clk 0:01:19.6]} 21... Rb8 {[%clk 0:01:55.4]} 22. Nc5
{[%clk 0:00:50.9]} 22... Kf7 {[%clk 0:01:56]} 23. b3 {[%clk 0:00:39.3]} 23... e4
{[%clk 0:01:54.7]} 24. h3 {[%clk 0:00:25.4]} 24... b6 {[%clk 0:01:55.3]} 25. Na4
{[%clk 0:00:24.1]} 25... Re6 {[%clk 0:01:48.4]} 26. Rd8 {[%clk 0:00:23.5]} 26...
Re8 {[%clk 0:01:43.8]} 27. Rd6 {[%clk 0:00:24.3]} 27... Bb7 {[%clk 0:01:40.4]}
28. Red1 {[%clk 0:00:24.9]} 28... Ke7 {[%clk 0:01:39.5]} 29. c5 {[%clk
0:00:25.6]} 29... b5 {[%clk 0:01:38]} 30. Nc3 {[%clk 0:00:26.9]} 30... Rbd8
{[%clk 0:01:32.6]} 31. f3 {[%clk 0:00:27.8]} 31... Rxd6 {[%clk 0:01:32.8]} 32.
Rxd6 {[%clk 0:00:24.7]} 32... b4 {[%clk 0:01:19.9]} 33. Na4 {[%clk 0:00:20.6]}
33... e3 {[%clk 0:01:08.6]} 34. Kf1 {[%clk 0:00:21.6]} 34... g5 {[%clk
0:01:04.6]} 35. f4 {[%clk 0:00:18.1]} 35... gxf4 {[%clk 0:01:06.5]} 36. gxf4
{[%clk 0:00:19.9]} 36... Nh5 {[%clk 0:01:04]} 37. Bxc6 {[%clk 0:00:20.2]} 37...
Bxc6 {[%clk 0:01:04.8]} 38. Rxc6 {[%clk 0:00:22.1]} 38... Nxf4 {[%clk
0:01:06.1]} 39. Ra6 {[%clk 0:00:17.6]} 39... e2+ {[%clk 0:01:06.6]} 40. Ke1
{[%clk 0:00:16.3]} 40... Kf7 {[%clk 0:01:06.9]} 41. Rxa7+ {[%clk 0:00:16.2]}
41... Kg6 {[%clk 0:01:08.1]} 42. Ra6+ {[%clk 0:00:14.3]} 42... Kh5 {[%clk
0:01:08.2]} 43. Nb2 {[%clk 0:00:12.8]} 43... Ng2+ {[%clk 0:01:08.6]} 44. Kf2
{[%clk 0:00:14.4]} 44... e1=Q+ {[%clk 0:01:10.5]} 45. Kxg2 {[%clk 0:00:15.6]}
45... Re2+ {[%clk 0:01:10.8]} 0-1

[Event "*** Qualifier 4: Titled Tuesday 3|2 Blitz"]
[Site "Chess.com"]
[Date "2017.04.25"]
[Round "8"]
[White "hansen"]
[Black "yurisolo"]
[Result "1-0"]
[WhiteElo "2653"]
[BlackElo "2489"]
[TimeControl "180+2"]
[EndTime "14:44:41 PDT"]
[Termination "hansen won by resignation"]

1. e4 {[%clk 0:02:41.2]} 1... c5 {[%clk 0:03:00.8]} 2. Nf3 {[%clk 0:02:36.4]}
2... e6 {[%clk 0:03:02.3]} 3. d4 {[%clk 0:02:28.6]} 3... cxd4 {[%clk 0:03:04.2]}
4. Nxd4 {[%clk 0:02:29.6]} 4... Nc6 {[%clk 0:03:06.1]} 5. Nc3 {[%clk 0:02:30.3]}
5... d6 {[%clk 0:03:07.5]} 6. g4 {[%clk 0:02:29.9]} 6... a6 {[%clk 0:03:08.1]}
7. g5 {[%clk 0:02:29.8]} 7... h6 {[%clk 0:03:08.6]} 8. g6 {[%clk 0:02:19.4]}
8... Nf6 {[%clk 0:03:02.7]} 9. gxf7+ {[%clk 0:02:19.7]} 9... Kxf7 {[%clk
0:03:04.6]} 10. Nxc6 {[%clk 0:02:15.4]} 10... bxc6 {[%clk 0:03:04.3]} 11. e5
{[%clk 0:02:17.3]} 11... Nd5 {[%clk 0:03:02.9]} 12. Qf3+ {[%clk 0:02:07.9]}
12... Kg8 {[%clk 0:03:02.4]} 13. Rg1 {[%clk 0:02:03]} 13... Nxc3 {[%clk
0:02:45.3]} 14. Qxc3 {[%clk 0:01:59.7]} 14... dxe5 {[%clk 0:02:42.3]} 15. Qxe5
{[%clk 0:01:58.6]} 15... Qd5 {[%clk 0:02:39.7]} 16. Bf4 {[%clk 0:01:58.1]} 16...
g5 {[%clk 0:02:19.4]} 17. Rd1 {[%clk 0:01:44.6]} 17... Qxe5+ {[%clk 0:02:05.1]}
18. Bxe5 {[%clk 0:01:45.5]} 18... Rh7 {[%clk 0:02:02.7]} 19. h4 {[%clk
0:01:39.8]} 19... Rd7 {[%clk 0:01:59.9]} 20. hxg5 {[%clk 0:01:38]} 20... Rxd1+
{[%clk 0:02:00.3]} 21. Kxd1 {[%clk 0:01:39.9]} 21... hxg5 {[%clk 0:02:01.7]} 22.
Rxg5+ {[%clk 0:01:39.4]} 22... Kf7 {[%clk 0:02:03.2]} 23. Bc4 {[%clk 0:01:27.2]}
23... Bd7 {[%clk 0:01:48.9]} 24. f4 {[%clk 0:01:18.4]} 24... Bh6 {[%clk
0:01:40.3]} 25. Rf5+ {[%clk 0:01:14.3]} 25... Ke7 {[%clk 0:01:18.5]} 26. Rh5
{[%clk 0:01:14.5]} 26... Bf8 {[%clk 0:01:19.2]} 27. Rh7+ {[%clk 0:01:13.5]}
27... Ke8 {[%clk 0:01:19.6]} 28. Bf6 {[%clk 0:00:26.5]} 28... Bd6 {[%clk
0:00:45]} 29. Rh8+ {[%clk 0:00:27.6]} 29... Bf8 {[%clk 0:00:45.8]} 30. Bg7
{[%clk 0:00:29.3]} 30... Kf7 {[%clk 0:00:46.6]} 31. Rxf8+ {[%clk 0:00:31]} 31...
Rxf8 {[%clk 0:00:47.4]} 32. Bxf8 {[%clk 0:00:32.9]} 32... Kxf8 {[%clk
0:00:49.3]} 33. Bxa6 {[%clk 0:00:34.5]} 33... Ke7 {[%clk 0:00:50]} 34. Kd2
{[%clk 0:00:33]} 34... Kd6 {[%clk 0:00:50.2]} 35. Kc3 {[%clk 0:00:34.3]} 35...
Kd5 {[%clk 0:00:50.1]} 36. Bd3 {[%clk 0:00:33.6]} 36... c5 {[%clk 0:00:51.1]}
37. b3 {[%clk 0:00:33.7]} 37... e5 {[%clk 0:00:45.4]} 38. fxe5 {[%clk
0:00:34.4]} 38... Kxe5 {[%clk 0:00:47.3]} 39. Kc4 {[%clk 0:00:35.1]} 39... Kd6
{[%clk 0:00:48.6]} 40. Be4 {[%clk 0:00:36.4]} 40... Bc8 {[%clk 0:00:37.9]} 41.
Kb5 {[%clk 0:00:35.3]} 41... Bd7+ {[%clk 0:00:38.4]} 42. Kb6 {[%clk 0:00:34.4]}
42... Be6 {[%clk 0:00:38.8]} 43. c4 {[%clk 0:00:29.1]} 43... Bg4 {[%clk
0:00:39.7]} 44. a4 {[%clk 0:00:27.1]} 44... Bd1 {[%clk 0:00:40.7]} 45. a5 {[%clk
0:00:27.1]} 45... Bxb3 {[%clk 0:00:41.8]} 46. a6 {[%clk 0:00:28.3]} 46... Bxc4
{[%clk 0:00:43.1]} 47. a7 {[%clk 0:00:29.4]} 47... Bd5 {[%clk 0:00:44]} 48. Bxd5
{[%clk 0:00:30.5]} 1-0

[Event "*** Qualifier 4: Titled Tuesday 3|2 Blitz"]
[Site "Chess.com"]
[Date "2017.04.25"]
[Round "8"]
[White "bugsbunny444"]
[Black "DiogenesSinopeus"]
[Result "1-0"]
[WhiteElo "2362"]
[BlackElo "2250"]
[TimeControl "180+2"]
[EndTime "14:44:42 PDT"]
[Termination "bugsbunny444 won by resignation"]

1. Nf3 {[%clk 0:03:02]} 1... Nf6 {[%clk 0:02:59.9]} 2. c4 {[%clk 0:03:02]} 2...
e6 {[%clk 0:02:59.6]} 3. g3 {[%clk 0:03:03.4]} 3... a6 {[%clk 0:02:55.1]} 4. b3
{[%clk 0:03:02.9]} 4... c5 {[%clk 0:02:55.3]} 5. Bg2 {[%clk 0:02:56.9]} 5... b5
{[%clk 0:02:55.3]} 6. Nc3 {[%clk 0:02:55.6]} 6... Qb6 {[%clk 0:02:55.8]} 7. O-O
{[%clk 0:02:56.4]} 7... Bb7 {[%clk 0:02:56.8]} 8. e3 {[%clk 0:02:51.1]} 8... Be7
{[%clk 0:02:54.2]} 9. Qe2 {[%clk 0:02:52.2]} 9... Ne4 {[%clk 0:02:52.3]} 10.
Nxe4 {[%clk 0:02:39.6]} 10... Bxe4 {[%clk 0:02:54.2]} 11. d3 {[%clk 0:02:40.8]}
11... Bb7 {[%clk 0:02:51.8]} 12. e4 {[%clk 0:02:23.3]} 12... d6 {[%clk
0:02:48.9]} 13. Bb2 {[%clk 0:02:07]} 13... O-O {[%clk 0:02:49.7]} 14. h4 {[%clk
0:01:57.7]} 14... Nd7 {[%clk 0:02:41.5]} 15. Ng5 {[%clk 0:01:56.5]} 15... h6
{[%clk 0:02:33.4]} 16. Nh3 {[%clk 0:01:42.6]} 16... Bf6 {[%clk 0:02:25.3]} 17.
Bxf6 {[%clk 0:01:27.6]} 17... Nxf6 {[%clk 0:02:27.2]} 18. Nf4 {[%clk 0:01:29.5]}
18... e5 {[%clk 0:02:17.9]} 19. Nh5 {[%clk 0:01:20.7]} 19... Qd8 {[%clk
0:01:41.6]} 20. f4 {[%clk 0:01:12.7]} 20... Qe7 {[%clk 0:01:20.5]} 21. Bh3
{[%clk 0:00:47.6]} 21... Nxh5 {[%clk 0:01:02.6]} 22. Qxh5 {[%clk 0:00:48]} 22...
f6 {[%clk 0:00:53.7]} 23. Bf5 {[%clk 0:00:41.7]} 23... Bc8 {[%clk 0:00:48]} 24.
Bg6 {[%clk 0:00:32.9]} 24... Be6 {[%clk 0:00:42.5]} 25. f5 {[%clk 0:00:30.7]}
25... Bf7 {[%clk 0:00:39.3]} 26. g4 {[%clk 0:00:32]} 26... Bxg6 {[%clk
0:00:32.8]} 27. fxg6 {[%clk 0:00:33.9]} 27... b4 {[%clk 0:00:20.7]} 28. Rf5
{[%clk 0:00:34.5]} 28... a5 {[%clk 0:00:17.2]} 29. Raf1 {[%clk 0:00:31.8]} 29...
a4 {[%clk 0:00:18.6]} 30. g5 {[%clk 0:00:33.2]} 30... fxg5 {[%clk 0:00:20]} 31.
hxg5 {[%clk 0:00:32.9]} 31... Rxf5 {[%clk 0:00:17.2]} 32. Rxf5 {[%clk
0:00:34.8]} 32... Rf8 {[%clk 0:00:16.3]} 33. gxh6 {[%clk 0:00:32.7]} 33... gxh6
{[%clk 0:00:03.5]} 34. Qxh6 {[%clk 0:00:32]} 34... Qg7 {[%clk 0:00:04.8]} 35.
Qxg7+ {[%clk 0:00:29.6]} 35... Kxg7 {[%clk 0:00:06]} 36. Rxf8 {[%clk 0:00:30.8]}
36... Kxf8 {[%clk 0:00:07.9]} 37. bxa4 {[%clk 0:00:31.8]} 37... d5 {[%clk
0:00:08.7]} 38. exd5 {[%clk 0:00:31.4]} 38... Kg7 {[%clk 0:00:08.7]} 39. a5
{[%clk 0:00:31.5]} 1-0

[Event "*** Qualifier 4: Titled Tuesday 3|2 Blitz"]
[Site "Chess.com"]
[Date "2017.04.25"]
[Round "8"]
[White "Hikaru"]
[Black "SergeiAza"]
[Result "1/2-1/2"]
[WhiteElo "2932"]
[BlackElo "2685"]
[TimeControl "180+2"]
[EndTime "14:44:50 PDT"]
[Termination "Game drawn by repetition"]

1. b3 {[%clk 0:03:02]} 1... e5 {[%clk 0:02:58.5]} 2. Bb2 {[%clk 0:03:03.3]} 2...
Nc6 {[%clk 0:03:00.1]} 3. e3 {[%clk 0:03:02]} 3... Nf6 {[%clk 0:03:00.3]} 4. c4
{[%clk 0:03:01.6]} 4... d5 {[%clk 0:02:55.9]} 5. cxd5 {[%clk 0:03:03.5]} 5...
Nxd5 {[%clk 0:02:56.1]} 6. Bb5 {[%clk 0:03:04.2]} 6... Bd6 {[%clk 0:02:52.9]} 7.
Nc3 {[%clk 0:03:02.8]} 7... Nxc3 {[%clk 0:02:51.2]} 8. Bxc6+ {[%clk 0:03:00.5]}
8... bxc6 {[%clk 0:02:51.5]} 9. dxc3 {[%clk 0:03:01.9]} 9... O-O {[%clk
0:02:29.2]} 10. Qf3 {[%clk 0:02:55]} 10... a5 {[%clk 0:02:25.8]} 11. Ne2 {[%clk
0:02:52]} 11... a4 {[%clk 0:02:24.7]} 12. O-O {[%clk 0:02:52.1]} 12... Rb8
{[%clk 0:01:56.5]} 13. b4 {[%clk 0:02:45.8]} 13... Ba6 {[%clk 0:01:56.1]} 14. e4
{[%clk 0:02:39.5]} 14... Qf6 {[%clk 0:01:51.3]} 15. Qxf6 {[%clk 0:02:37.5]}
15... gxf6 {[%clk 0:01:51.6]} 16. Rfe1 {[%clk 0:02:39.4]} 16... Rfd8 {[%clk
0:01:42.9]} 17. Ng3 {[%clk 0:02:37.1]} 17... Bc4 {[%clk 0:01:23.3]} 18. a3
{[%clk 0:02:28.9]} 18... Bf8 {[%clk 0:01:23.8]} 19. Nf1 {[%clk 0:02:24.1]} 19...
c5 {[%clk 0:01:17.9]} 20. Ne3 {[%clk 0:02:01.6]} 20... Bb3 {[%clk 0:01:17.9]}
21. Ng4 {[%clk 0:02:00.5]} 21... Kg7 {[%clk 0:01:00.6]} 22. Bc1 {[%clk
0:02:01.3]} 22... Kg6 {[%clk 0:00:53.7]} 23. h4 {[%clk 0:02:02.4]} 23... h5
{[%clk 0:00:54.1]} 24. Ne3 {[%clk 0:01:57.7]} 24... cxb4 {[%clk 0:00:50.4]} 25.
axb4 {[%clk 0:01:54.6]} 25... c5 {[%clk 0:00:51.9]} 26. bxc5 {[%clk 0:01:51.6]}
26... Bxc5 {[%clk 0:00:52.6]} 27. Ba3 {[%clk 0:01:53.2]} 27... Bxa3 {[%clk
0:00:49.5]} 28. Rxa3 {[%clk 0:01:53.7]} 28... Rd3 {[%clk 0:00:46.1]} 29. c4
{[%clk 0:01:52.8]} 29... Rbd8 {[%clk 0:00:40.1]} 30. Rc1 {[%clk 0:01:49.9]}
30... R3d4 {[%clk 0:00:30.7]} 31. f3 {[%clk 0:01:48.7]} 31... Rd3 {[%clk
0:00:28.7]} 32. Nd5 {[%clk 0:01:42.2]} 32... Kg7 {[%clk 0:00:27.6]} 33. c5
{[%clk 0:01:41.6]} 33... Rd4 {[%clk 0:00:20]} 34. Ne7 {[%clk 0:01:42.7]} 34...
Rd1+ {[%clk 0:00:19.1]} 35. Rxd1 {[%clk 0:01:43.8]} 35... Rxd1+ {[%clk
0:00:19.9]} 36. Kf2 {[%clk 0:01:45.2]} 36... Rc1 {[%clk 0:00:21]} 37. c6 {[%clk
0:01:43.4]} 37... Kf8 {[%clk 0:00:20.4]} 38. Nf5 {[%clk 0:01:44.2]} 38... Rxc6
{[%clk 0:00:20.6]} 39. Ra1 {[%clk 0:01:45.8]} 39... Ra6 {[%clk 0:00:21]} 40. Ra3
{[%clk 0:01:46.5]} 40... Rc6 {[%clk 0:00:21.6]} 41. Ra1 {[%clk 0:01:47.2]} 41...
Ra6 {[%clk 0:00:21.5]} 42. Ra3 {[%clk 0:01:46.9]} 42... Rc6 {[%clk 0:00:16.3]}
43. Ra1 {[%clk 0:01:29.1]} 43... Ra6 {[%clk 0:00:16.9]} 44. Ra3 {[%clk
0:00:52.4]} 44... Rc6 {[%clk 0:00:15.7]} 45. Ra1 {[%clk 0:00:39.1]} 45... Ra6
{[%clk 0:00:16.4]} 1/2-1/2